fUSD/lending_fUSD_20260611
["ID","MTS","AMOUNT","RATE_DAILY","PERIOD"]
[424798212,1781172639000,-2480.41739561,0.00010697,2]
[424798214,1781172639000,-2480.41739561,0.00010697,2]
[424798222,1781172639000,-2480.41739556,0.00010697,2]
[424798224,1781172639000,-1102.8752906,0.00010697,2]
[424798218,1781172639000,-2480.41739561,0.00010697,2]
[424798216,1781172639000,-2480.41739561,0.00010697,2]
[424798227,1781172639000,-15200.0,0.000107,3]
[424798229,1781172639000,-1102.8752906,0.00010721,2]
[424798231,1781172639000,-975.99841995,0.00010734,2]
[424798233,1781172639000,-1102.8752906,0.00010743,2]
[424798220,1781172639000,-2480.41739561,0.00010697,2]
[424798294,1781172639000,-1102.8752906,0.00010863,2]
[424798412,1781172639000,-1102.8752906,0.00011264,2]
[424798301,1781172639000,-1026.831814,0.00010878,2]
[424798353,1781172639000,-2000.0,0.00011062,2]
[424798373,1781172639000,-1102.8752906,0.00011107,2]
[424798371,1781172639000,-745.81400058,0.000111,2]
[424798358,1781172639000,-166.66,0.00011068,2]
[424798351,1781172639000,-250.31279834,0.0001106,2]
[424798356,1781172639000,-1102.8752906,0.00011066,2]
[424798379,1781172639000,-500.0,0.00011121,2]
[424798377,1781172639000,-250.0,0.0001112,2]
[424798375,1781172639000,-1102.8752906,0.0001112,2]
[424798382,1781172639000,-1102.8752906,0.00011133,2]
[424798392,1781172639000,-891.64949829,0.00011174,2]
[424798369,1781172639000,-500.0,0.00011098,2]
[424798390,1781172639000,-2000.0,0.0001117,2]
[424798388,1781172639000,-1102.8752906,0.0001117,2]
[424798397,1781172639000,-1102.8752906,0.00011183,2]
[424798395,1781172639000,-166.66,0.00011178,2]
[424798401,1781172639000,-1102.8752906,0.00011207,2]
[424798399,1781172639000,-1102.8752906,0.00011195,2]
[424798406,1781172639000,-1102.8752906,0.0001123,2]
[424798403,1781172639000,-1102.8752906,0.00011218,2]
[424798408,1781172639000,-1102.8752906,0.00011242,2]
[424798414,1781172639000,-474.66642907,0.00011269,2]
[424798410,1781172639000,-1102.8752906,0.00011253,2]
[424798290,1781172639000,-500.0,0.00010847,2]
[424798384,1781172639000,-1102.8752906,0.00011146,2]
[424798349,1781172639000,-1102.8752906,0.00011053,2]
[424798386,1781172639000,-1102.8752906,0.00011158,2]
[424798362,1781172639000,-891.6494983,0.00011078,2]
[424798305,1781172639000,-1102.8752906,0.00010898,2]
[424798366,1781172639000,-1102.8752906,0.00011094,2]
[424798309,1781172639000,-1102.8752906,0.00010915,2]
[424798311,1781172639000,-1102.8752906,0.00010932,2]
[424798303,1781172639000,-1102.8752906,0.00010881,2]
[424798313,1781172639000,-433.0,0.00010937,2]
[424798307,1781172639000,-25400.0,0.000109,3]
[424798317,1781172639000,-700.955093,0.00010954,2]
[424798315,1781172639000,-1102.8752906,0.00010948,2]
[424798319,1781172639000,-500.0,0.00010958,2]
[424798325,1781172639000,-166.66,0.00010959,2]
[424798323,1781172639000,-150.0,0.00010959,2]
[424798332,1781172639000,-2123.92,0.00010959,2]
[424798321,1781172639000,-500.0,0.00010958,2]
[424798360,1781172639000,-158.0,0.00011076,2]
[424798364,1781172639000,-1102.8752906,0.0001108,2]
[424798330,1781172639000,-186.7,0.00010959,2]
[424798347,1781172639000,-1102.8752906,0.00011038,2]
[424798343,1781172639000,-1102.8752906,0.00011024,2]
[424798341,1781172639000,-1102.8752906,0.00011009,2]
[424798345,1781172639000,-4000.0,0.0001103,2]
[424798336,1781172639000,-1102.8752906,0.00010979,2]
[424798339,1781172639000,-1139.2058849,0.00011,2]
[424798334,1781172639000,-1102.8752906,0.00010964,2]
[424798327,1781172639000,-150.0,0.00010959,2]
[424798338,1781172639000,-1102.8752906,0.00010994,2]
[424798484,1781172640000,-500.0,0.00011368,2]
[424798501,1781172640000,-500.0,0.00011369,2]
[424798490,1781172640000,-500.0,0.00011369,2]
[424798488,1781172640000,-500.0,0.00011369,2]
[424798486,1781172640000,-255.88865067,0.00011369,2]
[424798473,1781172640000,-500.0,0.00011368,2]
[424798471,1781172640000,-500.0,0.00011368,2]
[424798480,1781172640000,-500.0,0.00011368,2]
[424798478,1781172640000,-500.0,0.00011368,2]
[424798505,1781172640000,-525.58928282,0.00011369,2]
[424798482,1781172640000,-500.0,0.00011368,2]
[424798507,1781172640000,-500.0,0.00011369,2]
[424798525,1781172640000,-500.0,0.00011369,2]
[424798497,1781172640000,-500.0,0.00011369,2]
[424798495,1781172640000,-500.0,0.00011369,2]
[424798499,1781172640000,-500.0,0.00011369,2]
[424798503,1781172640000,-500.0,0.00011369,2]
[424798509,1781172640000,-500.0,0.00011369,2]
[424798511,1781172640000,-174.52373341,0.00011369,2]
[424798513,1781172640000,-500.0,0.00011369,2]
[424798517,1781172640000,-500.0,0.00011369,2]
[424798515,1781172640000,-500.0,0.00011369,2]
[424798519,1781172640000,-500.0,0.00011369,2]
[424798523,1781172640000,-250.0,0.00011369,2]
[424798475,1781172640000,-500.0,0.00011368,2]
[424798493,1781172640000,-500.0,0.00011369,2]
[424798469,1781172640000,-500.0,0.00011368,2]
[424798416,1781172640000,-1199.27823509,0.00011269,2]
[424798465,1781172640000,-500.0,0.00011368,2]
[424798521,1781172640000,-500.0,0.00011369,2]
[424798418,1781172640000,-648.01611445,0.00011269,2]
[424798426,1781172640000,-1102.8752906,0.00011275,2]
[424798420,1781172640000,-171.48663565,0.00011269,2]
[424798424,1781172640000,-6820.62317621,0.00011269,2]
[424798431,1781172640000,-21015.90137115,0.00011286,2]
[424798428,1781172640000,-1102.8752906,0.00011286,2]
[424798422,1781172640000,-891.64949829,0.00011269,2]
[424798435,1781172640000,-180.46972026,0.00011312,2]
[424798436,1781172640000,-500.0,0.00011342,2]
[424798433,1781172640000,-166.66,0.00011288,2]
[424798439,1781172640000,-2252.0,0.00011342,2]
[424798437,1781172640000,-4702.0,0.00011342,2]
[424798451,1781172640000,-1168.92649491,0.00011368,3]
[424798445,1781172640000,-199.48738674,0.00011368,3]
[424798443,1781172640000,-151.0,0.00011366,2]
[424798441,1781172640000,-356.57179864,0.00011359,2]
[424798447,1781172640000,-1168.92649491,0.00011368,3]
[424798449,1781172640000,-1168.92649491,0.00011368,3]
[424798457,1781172640000,-500.0,0.00011368,2]
[424798453,1781172640000,-1168.92649491,0.00011368,3]
[424798455,1781172640000,-500.0,0.00011368,2]
[424798459,1781172640000,-500.0,0.00011368,2]
[424798461,1781172640000,-500.0,0.00011368,2]
[424798463,1781172640000,-500.0,0.00011368,2]
[424798467,1781172640000,-500.0,0.00011368,2]
[424798527,1781172640000,-500.0,0.00011369,2]
[424798586,1781172640000,-500.0,0.00011487,2]
[424798535,1781172640000,-500.0,0.00011369,2]
[424798596,1781172640000,-500.0,0.00011487,2]
[424798590,1781172640000,-500.0,0.00011487,2]
[424798598,1781172640000,-500.0,0.00011487,2]
[424798609,1781172640000,-500.0,0.00011487,2]
[424798603,1781172640000,-500.0,0.00011487,2]
[424798614,1781172640000,-500.0,0.00011487,2]
[424798605,1781172640000,-500.0,0.00011487,2]
[424798607,1781172640000,-500.0,0.00011487,2]
[424798612,1781172640000,-500.0,0.00011487,2]
[424798616,1781172640000,-500.0,0.00011487,2]
[424798627,1781172640000,-166.66,0.00011507,2]
[424798634,1781172640000,-1341.77,0.00011684,2]
[424798632,1781172640000,-500.0,0.00011669,2]
[424798636,1781172640000,-175.0,0.00011826,2]
[424798620,1781172640000,-500.0,0.00011487,2]
[424798618,1781172640000,-500.0,0.00011487,2]
[424798625,1781172640000,-215.95576085,0.00011497,2]
[424798622,1781172640000,-500.0,0.00011487,2]
[424798639,1781172640000,-474.66642902,0.00011874,2]
[424798641,1781172640000,-502.0,0.0001189,2]
[424798644,1781172640000,-172.5,0.00011916,2]
[424798648,1781172640000,-172.5,0.00011916,2]
[424798646,1781172640000,-172.5,0.00011916,2]
[424798651,1781172640000,-500.0,0.00011943,2]
[424798531,1781172640000,-500.0,0.00011369,2]
[424798600,1781172640000,-500.0,0.00011487,2]
[424798594,1781172640000,-500.0,0.00011487,2]
[424798630,1781172640000,-156.15,0.00011537,2]
[424798653,1781172640000,-903.33759387,0.00012,2]
[424798592,1781172640000,-500.0,0.00011487,2]
[424798529,1781172640000,-500.0,0.00011369,2]
[424798538,1781172640000,-500.0,0.00011369,2]
[424798550,1781172640000,-500.0,0.00011369,2]
[424798552,1781172640000,-481.01316352,0.00011369,2]
[424798540,1781172640000,-160.84884867,0.00011369,2]
[424798555,1781172640000,-1500000.0,0.00011369,2]
[424798558,1781172640000,-500.0,0.00011395,2]
[424798542,1781172640000,-500.0,0.00011369,2]
[424798554,1781172640000,-316.36829503,0.00011369,2]
[424798544,1781172640000,-250.0,0.00011369,2]
[424798562,1781172640000,-500.0,0.00011487,2]
[424798548,1781172640000,-500.0,0.00011369,2]
[424798533,1781172640000,-611.16491799,0.00011369,2]
[424798588,1781172640000,-500.0,0.00011487,2]
[424798560,1781172640000,-166.66,0.00011397,2]
[424798575,1781172640000,-500.0,0.00011487,2]
[424798570,1781172640000,-500.0,0.00011487,2]
[424798568,1781172640000,-500.0,0.00011487,2]
[424798572,1781172640000,-500.0,0.00011487,2]
[424798584,1781172640000,-500.0,0.00011487,2]
[424798581,1781172640000,-500.0,0.00011487,2]
[424798577,1781172640000,-500.0,0.00011487,2]
[424798566,1781172640000,-500.0,0.00011487,2]
[424798564,1781172640000,-500.0,0.00011487,2]
[424798546,1781172640000,-500.0,0.00011369,2]
[424798579,1781172640000,-500.0,0.00011487,2]
[424798732,1781172641000,-150.0,0.00013488,2]
[424798750,1781172641000,-297.05722595,0.00013503,2]
[424798738,1781172641000,-150.0,0.00013488,2]
[424798736,1781172641000,-150.0,0.00013488,2]
[424798734,1781172641000,-150.0,0.00013488,2]
[424798727,1781172641000,-150.0,0.00013488,2]
[424798713,1781172641000,-474.66642902,0.00013085,2]
[424798729,1781172641000,-150.0,0.00013488,2]
[424798715,1781172641000,-648.01611444,0.00013085,2]
[424798717,1781172641000,-1932.99,0.0001319,2]
[424798748,1781172641000,-1000.0,0.000135,2]
[424798711,1781172641000,-20496.17460732,0.00013056,2]
[424798740,1781172641000,-150.0,0.00013488,2]
[424798759,1781172641000,-2000.0,0.0001352,2]
[424798744,1781172641000,-297.05722595,0.00013488,2]
[424798746,1781172641000,-150.0,0.00013488,2]
[424798742,1781172641000,-203.85144979,0.00013488,2]
[424798755,1781172641000,-297.05722595,0.00013518,2]
[424798757,1781172641000,-150.0,0.0001352,2]
[424798763,1781172641000,-150.0,0.00013525,2]
[424798761,1781172641000,-150.0,0.00013522,2]
[424798765,1781172641000,-297.05722595,0.00013533,2]
[424798767,1781172641000,-150.0,0.0001354,2]
[424798775,1781172641000,-150.0,0.00013563,2]
[424798771,1781172641000,-150.0,0.00013551,2]
[424798773,1781172641000,-150.0,0.00013556,2]
[424798753,1781172641000,-150.0,0.00013514,2]
[424798725,1781172641000,-150.0,0.00013488,2]
[424798655,1781172641000,-736.0,0.00012031,2]
[424798719,1781172641000,-199.5,0.00013233,2]
[424798769,1781172641000,-297.05722595,0.00013548,2]
[424798660,1781172641000,-156.15,0.00012215,2]
[424798662,1781172641000,-500.0,0.00012217,2]
[424798664,1781172641000,-2000.0,0.00012291,2]
[424798666,1781172641000,-35778.11752601,0.000123,2]
[424798668,1781172641000,-171.14,0.00012329,2]
[424798671,1781172641000,-165.78,0.00012329,2]
[424798673,1781172641000,-474.66642902,0.00012479,2]
[424798672,1781172641000,-20496.17460732,0.00012441,2]
[424798674,1781172641000,-500.0,0.00012491,2]
[424798679,1781172641000,-307.5643183,0.000125,2]
[424798683,1781172641000,-276.0,0.00012877,2]
[424798677,1781172641000,-311.9669302,0.000125,2]
[424798681,1781172641000,-500.0,0.00012765,2]
[424798690,1781172641000,-7665.35,0.00012893,2]
[424798686,1781172641000,-883.78,0.00012893,2]
[424798688,1781172641000,-150.99,0.00012893,2]
[424798692,1781172641000,-9999.99,0.00012893,2]
[424798694,1781172641000,-299.99,0.00012893,2]
[424798699,1781172641000,-1341.77,0.00012982,2]
[424798705,1781172641000,-1199.27823509,0.00013008,2]
[424798697,1781172641000,-156.15,0.00012894,2]
[424798707,1781172641000,-500.0,0.00013039,2]
[424798701,1781172641000,-5688.93883939,0.00013,2]
[424798703,1781172641000,-447.2388317,0.00013,5]
[424798709,1781172641000,-5426.07150161,0.0001305,2]
[424798721,1781172641000,-1252.0,0.00013233,2]
[424798723,1781172641000,-382.20684161,0.00013313,2]
[424798777,1781172641000,-297.05722595,0.00013563,2]
[424798657,1781172641000,-48317.9,0.00012055,2]
[424798781,1781172641000,-156.15,0.00013573,2]
[424798835,1781172641000,-150.0,0.00013692,2]
[424798854,1781172641000,-500.0,0.00013698,2]
[424798846,1781172641000,-500.0,0.00013698,2]
[424798848,1781172641000,-500.0,0.00013698,2]
[424798858,1781172641000,-500.0,0.00013698,2]
[424798840,1781172641000,-500.0,0.00013698,2]
[424798850,1781172641000,-500.0,0.00013698,2]
[424798842,1781172641000,-500.0,0.00013698,2]
[424798860,1781172641000,-500.0,0.00013698,2]
[424798862,1781172641000,-500.0,0.00013698,2]
[424798866,1781172641000,-500.0,0.00013698,2]
[424798864,1781172641000,-500.0,0.00013698,2]
[424798844,1781172641000,-500.0,0.00013698,2]
[424798868,1781172641000,-500.0,0.00013698,2]
[424798872,1781172641000,-500.0,0.00013698,2]
[424798876,1781172641000,-500.0,0.00013698,2]
[424798878,1781172641000,-500.0,0.00013698,2]
[424798874,1781172641000,-500.0,0.00013698,2]
[424798880,1781172641000,-500.0,0.00013698,2]
[424798882,1781172641000,-579.39543898,0.00013698,2]
[424798886,1781172641000,-500.0,0.00013698,2]
[424798884,1781172641000,-590.60459875,0.00013698,2]
[424798888,1781172641000,-500.0,0.00013698,2]
[424798895,1781172641000,-500.0,0.00013698,2]
[424798890,1781172641000,-500.0,0.00013698,2]
[424798894,1781172641000,-500.0,0.00013698,2]
[424798870,1781172641000,-557.54165227,0.00013698,2]
[424798852,1781172641000,-500.0,0.00013698,2]
[424798892,1781172641000,-179.84270164,0.00013698,2]
[424798837,1781172641000,-500.0,0.00013698,2]
[424798856,1781172641000,-500.0,0.00013698,2]
[424798783,1781172641000,-297.05722595,0.00013578,2]
[424798789,1781172641000,-150.0,0.00013593,2]
[424798787,1781172641000,-150.0,0.0001359,2]
[424798791,1781172641000,-297.05722595,0.00013594,2]
[424798793,1781172641000,-10000.0,0.00013599,2]
[424798785,1781172641000,-150.0,0.00013583,2]
[424798804,1781172641000,-150.0,0.00013624,2]
[424798795,1781172641000,-150.0,0.000136,2]
[424798802,1781172641000,-150.0,0.00013619,2]
[424798798,1781172641000,-297.05722595,0.00013609,2]
[424798800,1781172641000,-150.0,0.00013615,2]
[424798806,1781172641000,-150.0,0.00013624,2]
[424798808,1781172641000,-297.05722595,0.00013624,2]
[424798779,1781172641000,-150.0,0.00013567,2]
[424798821,1781172641000,-297.05722595,0.00013669,2]
[424798810,1781172641000,-150.0,0.00013638,2]
[424798839,1781172641000,-500.0,0.00013698,2]
[424798830,1781172641000,-297.05722595,0.00013684,2]
[424798817,1781172641000,-297.05722595,0.00013654,2]
[424798829,1781172641000,-150.0,0.00013679,2]
[424798832,1781172641000,-474.66642902,0.0001369,2]
[424798819,1781172641000,-150.0,0.00013658,2]
[424798823,1781172641000,-20496.17460732,0.00013671,2]
[424798825,1781172641000,-150.0,0.00013672,2]
[424798815,1781172641000,-150.0,0.00013647,2]
[424798813,1781172641000,-150.0,0.00013645,2]
[424798827,1781172641000,-150.0,0.00013675,2]
[424798812,1781172641000,-297.05722595,0.00013639,2]
[424798977,1781172642000,-500.0,0.00013698,2]
[424798979,1781172642000,-500.0,0.00013698,2]
[424798973,1781172642000,-500.0,0.00013698,2]
[424798975,1781172642000,-500.0,0.00013698,2]
[424798969,1781172642000,-500.0,0.00013698,2]
[424798971,1781172642000,-500.0,0.00013698,2]
[424798961,1781172642000,-500.0,0.00013698,2]
[424798967,1781172642000,-500.0,0.00013698,2]
[424798965,1781172642000,-500.0,0.00013698,2]
[424798963,1781172642000,-500.0,0.00013698,2]
[424798981,1781172642000,-500.0,0.00013698,2]
[424798996,1781172642000,-500.0,0.00013698,2]
[424798985,1781172642000,-500.0,0.00013698,2]
[424798990,1781172642000,-500.0,0.00013698,2]
[424798983,1781172642000,-500.0,0.00013698,2]
[424798998,1781172642000,-500.0,0.00013698,2]
[424798959,1781172642000,-500.0,0.00013698,2]
[424798992,1781172642000,-500.0,0.00013698,2]
[424798994,1781172642000,-500.0,0.00013698,2]
[424799004,1781172642000,-473.88481406,0.00013698,2]
[424799002,1781172642000,-500.0,0.00013698,2]
[424799000,1781172642000,-500.0,0.00013698,2]
[424799016,1781172642000,-500.0,0.00013698,2]
[424799020,1781172642000,-500.0,0.00013698,2]
[424799018,1781172642000,-500.0,0.00013698,2]
[424798987,1781172642000,-500.0,0.00013698,2]
[424798957,1781172642000,-500.0,0.00013698,2]
[424798939,1781172642000,-500.0,0.00013698,2]
[424798953,1781172642000,-500.0,0.00013698,2]
[424799007,1781172642000,-500.0,0.00013698,2]
[424798898,1781172642000,-500.0,0.00013698,2]
[424798900,1781172642000,-500.0,0.00013698,2]
[424798902,1781172642000,-500.0,0.00013698,2]
[424798905,1781172642000,-500.0,0.00013698,2]
[424798896,1781172642000,-500.0,0.00013698,2]
[424798907,1781172642000,-500.0,0.00013698,2]
[424798909,1781172642000,-500.0,0.00013698,2]
[424798911,1781172642000,-500.0,0.00013698,2]
[424798913,1781172642000,-500.0,0.00013698,2]
[424798915,1781172642000,-500.0,0.00013698,2]
[424798917,1781172642000,-500.0,0.00013698,2]
[424798955,1781172642000,-500.0,0.00013698,2]
[424798921,1781172642000,-500.0,0.00013698,2]
[424798924,1781172642000,-500.0,0.00013698,2]
[424798926,1781172642000,-500.0,0.00013698,2]
[424798930,1781172642000,-500.0,0.00013698,2]
[424798941,1781172642000,-500.0,0.00013698,2]
[424798935,1781172642000,-500.0,0.00013698,2]
[424798932,1781172642000,-500.0,0.00013698,2]
[424798943,1781172642000,-500.0,0.00013698,2]
[424798936,1781172642000,-500.0,0.00013698,2]
[424798947,1781172642000,-500.0,0.00013698,2]
[424798945,1781172642000,-500.0,0.00013698,2]
[424798949,1781172642000,-500.0,0.00013698,2]
[424798951,1781172642000,-500.0,0.00013698,2]
[424798919,1781172642000,-500.0,0.00013698,2]
[424798928,1781172642000,-500.0,0.00013698,2]
[424799010,1781172642000,-500.0,0.00013698,2]
[424799023,1781172642000,-500.0,0.00013698,2]
[424799093,1781172642000,-2726.92,0.00013698,2]
[424799102,1781172642000,-2726.92,0.00013698,2]
[424799095,1781172642000,-2726.92,0.00013698,2]
[424799098,1781172642000,-2726.92,0.00013698,2]
[424799097,1781172642000,-2726.92,0.00013698,2]
[424799100,1781172642000,-2726.92,0.00013698,2]
[424799110,1781172642000,-539.51,0.00013698,2]
[424799096,1781172642000,-2726.92,0.00013698,2]
[424799106,1781172642000,-539.51,0.00013698,2]
[424799104,1781172642000,-2726.92,0.00013698,2]
[424799108,1781172642000,-539.51,0.00013698,2]
[424799126,1781172642000,-539.51,0.00013698,2]
[424799091,1781172642000,-2726.92,0.00013698,2]
[424799116,1781172642000,-539.51,0.00013698,2]
[424799112,1781172642000,-539.51,0.00013698,2]
[424799114,1781172642000,-539.51,0.00013698,2]
[424799120,1781172642000,-539.51,0.00013698,2]
[424799122,1781172642000,-539.51,0.00013698,2]
[424799130,1781172642000,-539.51,0.00013698,2]
[424799132,1781172642000,-539.51,0.00013698,2]
[424799136,1781172642000,-539.51,0.00013698,2]
[424799134,1781172642000,-993.33,0.00013698,2]
[424799142,1781172642000,-993.33,0.00013698,2]
[424799140,1781172642000,-539.51,0.00013698,2]
[424799138,1781172642000,-993.33,0.00013698,2]
[424799026,1781172642000,-500.0,0.00013698,2]
[424799128,1781172642000,-539.51,0.00013698,2]
[424799089,1781172642000,-2726.92,0.00013698,2]
[424799124,1781172642000,-539.51,0.00013698,2]
[424799084,1781172642000,-2726.92,0.00013698,2]
[424799087,1781172642000,-2726.92,0.00013698,2]
[424799014,1781172642000,-500.0,0.00013698,2]
[424799012,1781172642000,-500.0,0.00013698,2]
[424799032,1781172642000,-500.0,0.00013698,2]
[424799036,1781172642000,-500.0,0.00013698,2]
[424799038,1781172642000,-500.0,0.00013698,2]
[424799050,1781172642000,-500.0,0.00013698,2]
[424799046,1781172642000,-500.0,0.00013698,2]
[424799044,1781172642000,-500.0,0.00013698,2]
[424799042,1781172642000,-500.0,0.00013698,2]
[424799040,1781172642000,-500.0,0.00013698,2]
[424799057,1781172642000,-500.0,0.00013698,2]
[424799052,1781172642000,-500.0,0.00013698,2]
[424799029,1781172642000,-500.0,0.00013698,2]
[424799048,1781172642000,-500.0,0.00013698,2]
[424799055,1781172642000,-500.0,0.00013698,2]
[424799068,1781172642000,-500.0,0.00013698,2]
[424799081,1781172642000,-500.0,0.00013698,2]
[424799079,1781172642000,-500.0,0.00013698,2]
[424799077,1781172642000,-500.0,0.00013698,2]
[424799070,1781172642000,-492.8427843,0.00013698,2]
[424799082,1781172642000,-504.05769263,0.00013698,2]
[424799064,1781172642000,-500.0,0.00013698,2]
[424799072,1781172642000,-500.0,0.00013698,2]
[424799061,1781172642000,-500.0,0.00013698,2]
[424799059,1781172642000,-500.0,0.00013698,2]
[424799074,1781172642000,-500.0,0.00013698,2]
[424799217,1781172643000,-500.0,0.00013698,2]
[424799212,1781172643000,-500.0,0.00013698,2]
[424799227,1781172643000,-500.0,0.00013698,2]
[424799201,1781172643000,-500.0,0.00013698,2]
[424799225,1781172643000,-500.0,0.00013698,2]
[424799215,1781172643000,-500.0,0.00013698,2]
[424799228,1781172643000,-500.0,0.00013698,2]
[424799222,1781172643000,-500.0,0.00013698,2]
[424799208,1781172643000,-247.44478835,0.00013698,2]
[424799218,1781172643000,-500.0,0.00013698,2]
[424799210,1781172643000,-238.48508219,0.00013698,2]
[424799220,1781172643000,-500.0,0.00013698,2]
[424799242,1781172643000,-451.09713554,0.00013698,2]
[424799213,1781172643000,-500.0,0.00013698,2]
[424799230,1781172643000,-500.0,0.00013698,2]
[424799232,1781172643000,-500.0,0.00013698,2]
[424799237,1781172643000,-500.0,0.00013698,2]
[424799239,1781172643000,-500.0,0.00013698,2]
[424799234,1781172643000,-500.0,0.00013698,2]
[424799235,1781172643000,-500.0,0.00013698,2]
[424799244,1781172643000,-500.0,0.00013698,2]
[424799240,1781172643000,-500.0,0.00013698,2]
[424799245,1781172643000,-292.30346816,0.00013698,2]
[424799247,1781172643000,-500.0,0.00013698,2]
[424799187,1781172643000,-660.37,0.00013698,2]
[424799223,1781172643000,-500.0,0.00013698,2]
[424799205,1781172643000,-500.0,0.00013698,2]
[424799249,1781172643000,-500.0,0.00013698,2]
[424799207,1781172643000,-500.0,0.00013698,2]
[424799146,1781172643000,-993.33,0.00013698,2]
[424799144,1781172643000,-539.51,0.00013698,2]
[424799156,1781172643000,-993.33,0.00013698,2]
[424799152,1781172643000,-993.33,0.00013698,2]
[424799158,1781172643000,-993.33,0.00013698,2]
[424799154,1781172643000,-993.33,0.00013698,2]
[424799150,1781172643000,-993.33,0.00013698,2]
[424799148,1781172643000,-993.33,0.00013698,2]
[424799160,1781172643000,-993.33,0.00013698,2]
[424799163,1781172643000,-993.33,0.00013698,2]
[424799167,1781172643000,-660.37,0.00013698,2]
[424799169,1781172643000,-660.37,0.00013698,2]
[424799199,1781172643000,-500.0,0.00013698,2]
[424799165,1781172643000,-660.37,0.00013698,2]
[424799173,1781172643000,-660.37,0.00013698,2]
[424799175,1781172643000,-660.37,0.00013698,2]
[424799177,1781172643000,-660.37,0.00013698,2]
[424799180,1781172643000,-660.37,0.00013698,2]
[424799182,1781172643000,-660.37,0.00013698,2]
[424799184,1781172643000,-660.37,0.00013698,2]
[424799189,1781172643000,-660.37,0.00013698,2]
[424799191,1781172643000,-500.0,0.00013698,2]
[424799195,1781172643000,-500.0,0.00013698,2]
[424799193,1781172643000,-500.0,0.00013698,2]
[424799197,1781172643000,-527.02640831,0.00013698,2]
[424799204,1781172643000,-500.0,0.00013698,2]
[424799171,1781172643000,-660.37,0.00013698,2]
[424799256,1781172643000,-500.0,0.00013698,2]
[424799359,1781172643000,-500.0,0.00013698,2]
[424799260,1781172643000,-500.0,0.00013698,2]
[424799295,1781172643000,-500.0,0.00013698,2]
[424799296,1781172643000,-500.0,0.00013698,2]
[424799312,1781172643000,-500.0,0.00013698,2]
[424799314,1781172643000,-500.0,0.00013698,2]
[424799318,1781172643000,-500.0,0.00013698,2]
[424799310,1781172643000,-500.0,0.00013698,2]
[424799316,1781172643000,-500.0,0.00013698,2]
[424799328,1781172643000,-500.0,0.00013698,2]
[424799320,1781172643000,-500.0,0.00013698,2]
[424799324,1781172643000,-500.0,0.00013698,2]
[424799330,1781172643000,-500.0,0.00013698,2]
[424799333,1781172643000,-500.0,0.00013698,2]
[424799297,1781172643000,-500.0,0.00013698,2]
[424799322,1781172643000,-500.0,0.00013698,2]
[424799335,1781172643000,-500.0,0.00013698,2]
[424799343,1781172643000,-500.0,0.00013698,2]
[424799341,1781172643000,-500.0,0.00013698,2]
[424799339,1781172643000,-500.0,0.00013698,2]
[424799345,1781172643000,-549.51495302,0.00013698,2]
[424799354,1781172643000,-500.0,0.00013698,2]
[424799350,1781172643000,-500.0,0.00013698,2]
[424799348,1781172643000,-500.0,0.00013698,2]
[424799352,1781172643000,-500.0,0.00013698,2]